Cogmind - Beta 14 @@@ ROGUE MODE // 2025.01.15 @ 13:55:50 Player: Anting Result: Destroyed by G-47 Trooper with Particle Gun Performance ------------- Evolutions (2) 1000 Regions Visited (5) 1000 Robots Destroyed (64) 320 Value Destroyed (1457) 1457 Prototype IDs (24) 480 Alien Tech Used (0) 0 Bonus (360) 360 TOTAL SCORE: 4617 Bonus ------- Follower Combat Kills 60 Aligned with FarCom 300 Cogmind --------- Core Integrity 0/550 Matter 224/300 Energy 98/100 System Corruption 18% Temperature Cool (9) Movement Core (50) Location -8/Materials Parts ------- > --- POWER (1) -------- (None) > --- PROPULSION (2) --- (None) > --- UTILITY (6) ------ Advanced Visual Processing Unit Advanced Visual Processing Unit Signal Interpreter Improved Targeting Computer > --- WEAPON (2) ------- Chainsword > --- INVENTORY (5) ---- Light Ion Engine Light Treads Advanced Weight Redist. System Peak State ------------ > --- POWER ------------ Light Deuterium Engine > --- PROPULSION ------- Armored Treads > --- UTILITY ---------- Small Storage Unit Improved Targeting Computer Improved Targeting Computer Improved Targeting Computer Improved Targeting Computer Trap Reconfigurator > --- WEAPON ----------- Pulse Rifle Katana > --- INVENTORY -------- Advanced Weight Redist. System Signal Interpreter Signal Interpreter Improved Light Armor Plating Hacking Suite Mini Grenade Launcher Mining Laser [Rating: 31] Favorites ----------- Power Ion Engine Engine Ion Engine Power Core Nuclear Core Propulsion Light Treads Treads Light Treads Wheel Compact Wheel Utility Small Storage Unit Device Trap Reconfigurator Storage Small Storage Unit Processor Improved Targeting Computer Hackware Hacking Suite Protection Improved Light Armor Plating Weapon Medium Laser Energy Gun Medium Laser Energy Cannon Plasma Cannon Ballistic Gun Assault Rifle Launcher Mini Grenade Launcher Special Weapon Mining Laser Slashing Weapon Katana Build | -11 -10 -10 -10 -9 -8 ------- Run | Yrd Mat Min Exi Min Mat Slots Evolved 4 | . . . . . 4 Power . | . . . . . . Propulsion . | . . . . . . Utility 4 | . . . . . 4 Weapon . | . . . . . . Parts Attached 58 | 6 4 . 1 3 44 Power 7 | 1 1 . 1 . 4 Engine 5 | 1 1 . 1 . 2 Core 2 | . . . . . 2 Reactor . | . . . . . . Propulsion 14 | 2 . . . 2 10 Treads 12 | 2 . . . . 10 Leg . | . . . . . . Wheel 2 | . . . . 2 . Hover . | . . . . . . Flight . | . . . . . . Utility 17 | 1 1 . . . 15 Device 2 | . . . . . 2 Storage 1 | 1 . . . . . Processor 7 | . 1 . . . 6 Hackware 1 | . . . . . 1 Protection 6 | . . . . . 6 Artifact . | . . . . . . Weapon 20 | 2 2 . . 1 15 Energy Gun 2 | 1 . . . . 1 Energy Cannon 9 | . . . . . 9 Ballistic Gun 4 | 1 2 . . . 1 Ballistic Cannon . | . . . . . . Launcher 2 | . . . . 1 1 Special Weapon 1 | . . . . . 1 Impact Weapon . | . . . . . . Slashing Weapon 2 | . . . . . 2 Piercing Weapon . | . . . . . . Special Melee Weapon . | . . . . . . Unidentified Prototypes 1 | . . . . . 1 Parts Lost 27 | . . . . 3 24 Power 4 | . . . . . 4 Propulsion 7 | . . . . 2 5 Utility 8 | . . . . . 8 Weapon 8 | . . . . 1 7 Highest Loss Streak 11 | . . . . 3 11 To Critical Strikes . | . . . . . . Average Slot Usage (%) 93 | . 99 100 100 91 85 Engine 9 | . 14 14 14 14 2 Core 1 | . . . . . 2 Treads 22 | . 28 28 28 14 14 Device 2 | . . . . . 5 Storage 9 | . 14 14 14 14 2 Processor 18 | . 13 14 14 14 26 Hackware 2 | . . . . . 6 Protection 2 | . . . . . 6 Energy Cannon 4 | . . . . . 10 Ballistic Gun 16 | . 27 28 28 21 . Slashing Weapon 1 | . . . . . 2 Peak Build Rating 31 | 6 12 12 13 13 31 Average Rating 9 | 5 10 12 12 12 25 On Entrance 9 | . 6 12 12 13 13 Naked Turns . | . . . . . . Heaviest Build 24 | 14 18 18 18 18 24 Greatest Support 49 | 40 40 40 40 40 49 Greatest Overweight (x) 5 | . . . . 5 1 Average Overweight (x) . | . . . . . . Largest Inventory Capacity 8 | 8 8 8 8 8 8 Average Capacity 7 | 7 8 8 8 8 5 Most Carried 8 | 4 8 8 8 8 8 Average Carried 4 | 2 7 7 8 7 5 Final Capacity 8 | 8 8 8 8 8 5 Final Carried 8 | 3 8 8 8 8 3 Class Distribution -------------------- 100% | Mutant Dominant Class ---------------- Mutant | -10/Materials Mutant | -10/Mines Mutant | -10/Exiles Mutant | -9/Mines Mutant | -8/Materials Resources | -11 -10 -10 -10 -9 -8 ----------- Run | Yrd Mat Min Exi Min Mat Matter Collected 1273 | 275 232 147 . 121 498 Remotely . | . . . . . . Salvage Created 1790 | . 350 257 . 213 970 Parts 109 | 1 39 10 . 8 51 Haulers Intercepted 2 | . . . . . 2 Recyclers Shooed 2 | . . 1 . . 1 Parts Field Recycled . | . . . . . . Retrieved Matter . | . . . . . . Parts Self-Destructed . | . . . . . . Prevented . | . . . . . . Kills | -11 -10 -10 -10 -9 -8 ------- Run | Yrd Mat Min Exi Min Mat Combat Hostiles Destroyed 43 | 2 13 7 . 3 18 Melee 3 | . . . . . 3 Guns 25 | 2 13 7 . 1 2 Cannons 6 | . . . . . 6 AOE 7 | . . . . 2 5 Classes Destroyed 12 | 1 5 . . 1 5 Worker 6 | . 1 3 . . 2 Builder 6 | . 3 . . 1 2 Hauler 2 | . . . . . 2 Recycler 4 | . . . . 2 2 Watcher 3 | . 1 . . . 2 Swarmer 18 | . 11 3 . . 4 Grunt 14 | . 2 4 . 3 5 Duelist 1 | . . . . . 1 Sentry 4 | . . . . . 4 Demolisher 2 | 2 . . . . . Specialist 2 | . . . . . 2 Hunter 2 | . . . . . 2 Best Kill Streak 6 | 2 4 6 . 4 5 Combat Bots Only 5 | 2 3 5 . 3 4 Max Kills in Single Turn 3 | 1 3 2 . 3 3 Gunslinging . | . . . . . . Exploded 2 | . . . . 2 2 Melee 1 | . . . . . 1 Uniques/NPCs Destroyed . | . . . . . . Combat | -11 -10 -10 -10 -9 -8 -------- Run | Yrd Mat Min Exi Min Mat Hostile Shots Fired 313 | 8 46 19 . 25 215 Missed 85 | 1 19 5 . 5 55 Damage Taken 3863 | 310 286 154 . 297 2816 Core 742 | 79 44 34 . 35 550 Absorbed by Shields . | . . . . . . Core Remaining (%) 45 | 68 . . . 23 . Volleys Fired 128 | 5 22 17 . 9 75 Largest 2 | 2 2 2 . 2 2 Hottest 160 | 70 46 46 . 53 160 Shots Fired 206 | 10 44 35 . 16 101 Gun 129 | 10 44 35 . 13 27 Cannon 60 | . . . . . 60 Launcher 11 | . . . . 3 8 Special 6 | . . . . . 6 Kinetic 103 | 5 44 35 . 13 6 Thermal 92 | 5 . . . . 87 Explosive 11 | . . . . 3 8 Electromagnetic . | . . . . . . Robot Hit Streak 19 | 5 6 9 . 10 19 Robot Miss Streak 3 | 1 3 3 . 3 3 Penetration Max . | . . . . . . Secondary Targets . | . . . . . . Shots Hit Robots 151 | 7 29 22 . 13 80 Core Hits 95 | 4 22 17 . 10 42 Critical Kills 1 | . . . . . 1 Critical Parts Destroyed . | . . . . . . Critical Strikes 5 | 1 . . . . 4 Burn 2 | 1 . . . . 1 Meltdown 1 | . . . . . 1 Sever 2 | . . . . . 2 Melee Attacks 27 | . . . . . 27 Impact . | . . . . . . Slashing 27 | . . . . . 27 Piercing . | . . . . . . Sneak Attacks 2 | . . . . . 2 Combat Hostiles . | . . . . . . Follow-up Attacks . | . . . . . . Damage Inflicted 3952 | 120 442 366 . 414 2610 Guns 1485 | 120 442 366 . 170 387 Cannons 1075 | . . . . . 1075 Explosions 925 | . . . . 244 681 Melee 467 | . . . . . 467 Ramming . | . . . . . . Kinetic 1094 | 69 442 366 . 170 47 Thermal 1466 | 51 . . . . 1415 Explosive 925 | . . . . 244 681 Electromagnetic . | . . . . . . Impact . | . . . . . . Slashing 467 | . . . . . 467 Piercing . | . . . . . . Highest Corruption 18 | . 1 1 1 1 18 Average Corruption 7 | . 1 1 1 1 17 Corruption Purged . | . . . . . . Corruption Blocked . | . . . . . . Effects 76 | . 3 9 2 1 61 Message Errors 20 | . . 3 . . 17 Matter Fused 16 | . 2 3 . . 11 Heat Flow Errors 9 | . . . 1 1 7 Energy Discharges 7 | . . 1 1 . 5 Parts Rejected 1 | . . . . . 1 Parts Fused 1 | . . . . . 1 Data Loss (minor) 4 | . . . . . 4 Data Loss (major) 6 | . . 1 . . 5 Misfires 3 | . . 1 . . 2 Alerts 2 | . 1 . . . 1 Misdirections 3 | . . . . . 3 Weapon Failures 4 | . . . . . 4 Overload Shots . | . . . . . . Overflow Damage 91 | . . . . 13 78 Projectiles 21 | . . . . . 21 Explosions 32 | . . . . 13 19 Melee 38 | . . . . . 38 Knockbacks . | . . . . . . Impact . | . . . . . . Kinetic . | . . . . . . Secondary . | . . . . . . Self-Inflicted Damage 86 | . . . . 49 37 Shots 5 | . . . . 2 3 Rammed 1 | . 1 . . . . Targets Rammed 1 | . 1 . . . . Kicked . | . . . . . . Crushed . | . . . . . . Highest Temperature 440 | 36 2 6 230 221 440 Average Temperature 123 | 16 1 3 124 55 141 Received Heat Transfer 765 | . 42 66 . 135 522 Effects 1 | . . . . . 1 Energy Bleed 1 | . . . . . 1 Siege Activations . | . . . . . . Robots Corrupted . | . . . . . . Combat Hostiles . | . . . . . . Parts Fried . | . . . . . . Impact Corruptions . | . . . . . . Robots Melted 3 | . . . . . 3 Combat Hostiles 2 | . . . . . 2 Parts Melted 10 | . . . . . 10 Heat Transferred 3043 | 222 . . . . 2821 Parts Sabotaged . | . . . . . . Parts Stolen . | . . . . . . Parts Stripped . | . . . . . . Power Chain Reactions . | . . . . . . Alert | -11 -10 -10 -10 -9 -8 ------- Run | Yrd Mat Min Exi Min Mat Peak Influence 305 | 50 207 221 . 103 305 Initial 38 | . . 36 . . 38 Average 22 | 1 58 53 . 47 102 Maximum Alert Level 1 | . 1 1 . . 1 Low Security (%) 97 | 100 98 94 . 100 80 Level 1 2 | . 1 5 . . 19 Level 2 . | . . . . . . Level 3 . | . . . . . . Level 4 . | . . . . . . Level 5 . | . . . . . . High Security . | . . . . . . Max Security . | . . . . . . Squads Dispatched 6 | . 1 . . . 5 Investigation 3 | . 1 . . . 2 Extermination . | . . . . . . Reinforcement 3 | . . . . . 3 Assault . | . . . . . . Garrison . | . . . . . . Intercept . | . . . . . . Searches Triggered . | . . . . . . Construction Impeded . | . . . . . . Haulers Reinforced . | . . . . . . Active Scanning Responses . | . . . . . . Cargo Convoy Interrupts . | . . . . . . Stealth | -11 -10 -10 -10 -9 -8 --------- Run | Yrd Mat Min Exi Min Mat Distress Signals 3 | . . . . . 3 Communications Jammed . | . . . . . . Distress Signals . | . . . . . . Times Spotted 70 | 2 20 9 . 4 35 Peak Tracking Total 5 | 2 3 4 . 3 5 Tactical Retreats 6 | . 3 . . 1 2 Traps | -11 -10 -10 -10 -9 -8 ------- Run | Yrd Mat Min Exi Min Mat Traps Triggered 6 | . 2 . . . 4 Indirectly . | . . . . . . Trap Hack Attempts . | . . . . . . Triggered . | . . . . . . Disarmed . | . . . . . . Reprogrammed . | . . . . . . Reused . | . . . . . . Traps Reconfigurated 1 | . . . . . 1 Traps Extracted . | . . . . . . Installed . | . . . . . . Triggered . | . . . . . . Machines | -11 -10 -10 -10 -9 -8 ---------- Run | Yrd Mat Min Exi Min Mat Machines Disabled 1 | . . . . . 1 Max in Single Turn 1 | . . . . . 1 Machines Repaired . | . . . . . . Machines Dismantled . | . . . . . . Machines Sabotaged . | . . . . . . Overloaded Fab Kills . | . . . . . . Hacking | -11 -10 -10 -10 -9 -8 --------- Run | Yrd Mat Min Exi Min Mat Machines Accessed 10 | . 7 1 1 . 1 Terminals 8 | . 6 1 . . 1 Fabricators . | . . . . . . Repair Stations . | . . . . . . Recycling Units 1 | . 1 . . . . Scanalyzers . | . . . . . . Garrison Access . | . . . . . . Total Hacks 19 | . 13 2 1 . 3 Successful 11 | . 7 1 1 . 2 Failed 8 | . 6 1 . . 1 Catastrophic 3 | . 2 1 . . . Database Lockouts . | . . . . . . Manual 15 | . 12 1 1 . 1 Terminals 17 | . 12 2 . . 3 Fabricators . | . . . . . . Repair Stations . | . . . . . . Recycling Units 1 | . 1 . . . . Scanalyzers . | . . . . . . Garrison Access . | . . . . . . Terminal Hacks 6 | . 2 1 1 . 2 Record 3 | . . 1 . . 2 Branch Access Points 1 | . 1 . . . . Emergency Access Points 1 | . 1 . . . . Derelict Proto ID Bank 1 | . . . 1 . . Fabricator Hacks . | . . . . . . Repair Station Hacks . | . . . . . . Recycling Unit Hacks 1 | . 1 . . . . Report Inventory 1 | . 1 . . . . Scanalyzer . | . . . . . . Garrison Access Hacks . | . . . . . . Unauthorized Hacks 4 | . 4 . . . . Terminals 4 | . 4 . . . . Botnet 3 | . 3 . . . . Operators 1 | . 1 . . . . Fabricators . | . . . . . . Repair Stations . | . . . . . . Recycling Units . | . . . . . . Scanalyzers . | . . . . . . Garrison Access . | . . . . . . Data Cores Recovered . | . . . . . . Used . | . . . . . . Hacking Detections 6 | . 4 1 . . 1 Full Trace Events 3 | . 2 . . . 1 Feedback Events 1 | . 1 . . . . Corruption 1 | . 1 . . . . Feedback Blocked . | . . . . . . Robot Schematics Acquired . | . . . . . . Robots Built . | . . . . . . Authchips . | . . . . . . Time . | . . . . . . Total Robot Build Rating . | . . . . . . Part Schematics Acquired . | . . . . . . Parts Built . | . . . . . . Authchips . | . . . . . . Time . | . . . . . . Total Part Build Rating . | . . . . . . Parts Repaired . | . . . . . . Time . | . . . . . . Parts Recycled . | . . . . . . Recycled Matter . | . . . . . . Retrieved Matter . | . . . . . . Retrieved Components . | . . . . . . Parts Scanalyzed . | . . . . . . Part Schematics Acquired . | . . . . . . Parts Damaged . | . . . . . . Bothacking | -11 -10 -10 -10 -9 -8 ------------ Run | Yrd Mat Min Exi Min Mat Used RIF Installer . | . . . . . . Robots Hacked . | . . . . . . Non-combat . | . . . . . . Combat . | . . . . . . Robot Hacks Applied . | . . . . . . Relay Couplers Released . | . . . . . . Fabnet Peak Effective % . | . . . . . . Robots Rewired . | . . . . . . Allies Hacked . | . . . . . . Hacks Repelled . | . . . . . . Allies | -11 -10 -10 -10 -9 -8 -------- Run | Yrd Mat Min Exi Min Mat Total Allies 4 | . . 3 . 1 . Largest Group 3 | . . 3 1 1 1 Highest-Rated Group 40 | . . 40 8 31 31 Highest-Rated Ally 31 | . . 16 8 31 31 Total Orders 2 | . . 1 . 1 . STAY 1 | . . . . 1 . GUARD 1 | . . 1 . . . Ally Attacks 33 | . . 16 . 4 13 Total Damage 384 | . . 168 . 21 195 Kills 3 | . . 2 . . 1 Allies Corrupted . | . . . . . . Allies Melted . | . . . . . . Intel | -11 -10 -10 -10 -9 -8 ------- Run | Yrd Mat Min Exi Min Mat Robot Analysis Total . | . . . . . . Derelict Logs Recovered 4 | . . 3 . 1 . Drone Launches . | . . . . . . Drone Recoveries . | . . . . . . Exploration | -11 -10 -10 -10 -9 -8 ------------- Run | Yrd Mat Min Exi Min Mat Turns Passed 15519 | 10875 1262 1057 349 174 1802 Spaces Moved 5079 | 2702 695 609 217 97 759 Core 19 | 3 . . . 8 8 Treads 4903 | 2699 695 609 217 51 632 Legs . | . . . . . . Wheels 157 | . . . . 38 119 Hover . | . . . . . . Flight . | . . . . . . Fastest Speed 50 | 50 160 160 160 100 50 Average Speed 158 | 159 160 160 160 148 152 Slowest Speed 300 | 160 160 160 160 300 170 Overloaded Moves . | . . . . . . Propulsion Burnouts . | . . . . . . Robots Hopped . | . . . . . . Cave-ins Triggered 2 | . . . . . 2 Exploration Rate (%) 73 | 116 84 99 61 31 50 Regions Visited 5 Branch Regions 3 Pre-discovered Areas 1 | . . 1 . . . Known Exits Taken 2 | . 1 . . 1 . Unknown Exits Taken 3 | 1 . 1 1 . . Scrap Searched 1 | . . 1 . . . Spaces Dug 30 | . . . . . 30 Terrain Destroyed 95 | . . . . 20 75 Melee 13 | . . . . . 13 Projectile 18 | . . . . . 18 AOE 64 | . . . . 20 44 Terrain Rammed . | . . . . . . Walls Destroyed . | . . . . . . Machines Disabled . | . . . . . . Actions | -11 -10 -10 -10 -9 -8 --------- Run | Yrd Mat Min Exi Min Mat Total 12282 | 9247 802 658 219 111 1245 Wait 6923 | 6526 65 31 . . 301 Move 5074 | 2701 694 608 216 96 759 Hop . | . . . . . . Pick Up 54 | 9 11 1 1 3 29 Fast Attach 8 | . . . . . 8 Attach 35 | 6 2 . . 3 24 Detach . | . . . . . . Swap 15 | . 2 . 1 . 12 Drop 17 | . 5 1 1 . 10 Fire 128 | 5 22 17 . 9 75 Melee 27 | . . . . . 27 Ram . | . . . . . . Kick . | . . . . . . Crush 1 | . 1 . . . . Escape Stasis . | . . . . . . Rewire . | . . . . . . Trap . | . . . . . . Miscellaneous . | . . . . . . Route ------- -11/Scrapyard -10/Materials (discovered 3 exits: [*Mat x2] / *Min) -10/Mines (discovered 3 exits: [*Mat x2] / *Exi) -10/Exiles -9/Mines -8/Materials (discovered 2 exits: *Fac x2) History --------- Turn | Location | Event 2 | -11/Scrapyard | Met Revision 17 9 | -11/Scrapyard | Discovered new exit (range 16) 1564 | -11/Scrapyard | Assembled infested the area 10876 | -11/Scrapyard | Entered Materials 10877 | -10/Materials | Build established: Mutant 11088 | -10/Materials | Discovered new exit (range 16) 11341 | -10/Materials | Discovered new exit (range 16) 11559 | -10/Materials | Discovered new exit (range 6) 11562 | -10/Materials | Identified exit to Mines 12138 | -10/Materials | Entered Mines 12191 | -10/Mines | Core integrity fell below 50% 12543 | -10/Mines | Assisted by bots powering up and referring to "LRC-V3" 12547 | -10/Mines | Learned location of 1 exit from Materials 12629 | -10/Mines | Found a hidden stash of uninstalled traps 12719 | -10/Mines | Learned Materials emergency access door positions 12816 | -10/Mines | Learned location of Zion (-7) 12856 | -10/Mines | Discovered new exit (range 12) 12955 | -10/Mines | Discovered new exit (range 5) 13185 | -10/Mines | Deemed a non-threat by the Exiles lab entrance 13187 | -10/Mines | Discovered new exit (range 5) 13195 | -10/Mines | Entered Exiles 13195 | -10/Exiles | Accompanied by 1 ally 13235 | -10/Exiles | Met 8R-AWN 13263 | -10/Exiles | Met EX-HEX 13309 | -10/Exiles | Met EX-BIN 13331 | -10/Exiles | Aligned with FarCom system 13333 | -10/Exiles | Given EX-Vault access code 13379 | -10/Exiles | Opened EX-Vault 13394 | -10/Exiles | Found Trap Reconfigurator 13426 | -10/Exiles | Warned to stay clear of 0b10 Research branches 13469 | -10/Exiles | Met EX-DEC 13530 | -10/Exiles | Discovered new exit (range 10) 13544 | -10/Exiles | Left Exiles lab with Trap Reconfigurator 13544 | -10/Exiles | Entered Mines 13544 | -9/Mines | Accompanied by 1 ally 13594 | -9/Mines | Identified exit to Materials 13668 | -9/Mines | Lost 3 parts (2n1w) 13709 | -9/Mines | Received a Mining Laser from a helpful Derelict 13718 | -9/Mines | Entered Materials 13718 | -8/Materials | Accompanied by 1 ally 13718 | -8/Materials | Evolved 4 slots: Utility x4 13719 | -8/Materials | Identified exit to Factory 14233 | -8/Materials | Crushed by falling debris 14233 | -8/Materials | System corruption reached 10% 14264 | -8/Materials | Lost 6 parts (1n4u1w) 14489 | -8/Materials | Crushed by falling debris 14805 | -8/Materials | Discovered exit to Factory (range 10) 14901 | -8/Materials | Core integrity fell below 50% 15494 | -8/Materials | Core integrity fell below 20% 15520 | -8/Materials | Destroyed by G-47 Trooper with Particle Gun Last Messages --------------- Acquired Lgt. Treads. U-05 Engineer lays Concrete. U-05 Engineer builds a Wall. U-05 Engineer lays Concrete. Hacking Suite destroyed. Acquired Prototype Ballistic Gun. Identified Enh. Autogun. U-05 Engineer lays Concrete. Lgt. Treads destroyed. U-05 Engineer builds a Wall. The unstable cave ceiling collapses. G-47 Trooper destroyed. Acquired 31 matter. U-05 Engineer lays Concrete. U-05 Engineer builds a Wall. R5K1/L410TT69V4CADRUWLPO The unstable cave ceiling collapses. Acquired Lgt. Treads. Enh. Autogun destroyed. G-47 Trooper Lgt. Nuclear Core severed. Map ----- +----------------------------------------------------+ | ????????????????????????????????????? ???????????? | | ????????????????????????????????????? ???????????? | | ????????????????????????????????????? ???????????? | | ????????????????????????????????????? ???????????? | | ????????????????????????????????????? ???????????? | | ????????????????????????????????????? ???????????? | | ????????????????????????????????????? ???????????? | | ????????????????????????????????????# #??????????? | | ????????????????????????????????????# #??????????? | | ????????????????#????? ????????????# #??????????? | | ????????????????? ???? ! ???????????#=#??????????? | | ?????????????????? ???? ???????????#%#??????????? | | ???????????????#??? ??? ???????????# #??????????? | | ########## ?# ###+############ #??????????? | | ^ # #??????????? | | ^ H ? T #??????????? | | ^ # #??????????? | | ######?????????# #### #####+### #??????????? | | ?????#########??????????# # =# #??????????? | | ?????# #??????????# # """ = # #??????????? | | ?????# """ #######????#g + """ # #??????????? | | ?????# """ # #???## # """ # #??????????? | | ?????# """ # ###### # # #??????????? | | ?????# + T g[# ###+### #??????????? | | ?????# """ " #######g##!# # ##" #??????????? | | ?????# """ # #??# @*u[[ ### #??????????? | | ?????# """ #######??# "% [ # #?#!#??????????? | | ?????# #????????# " #?#*#??????????? | | ?????# ! = !#????????# " #?#%#??????????? | | ###### #????????# "" % #?#!##?????????? | | ##########????????# " #?# "#?????????? | | #?????????????????#] # ##?# "#?????????? | | #????????###??????# ] ##??# ##?????????? | | """ #???###### ####???# ######+####???????? | | """ #???# #???########## % ! ##??????? | | """ ##### """ **] ######### =# """ """ #??????? | | # # """ **] # ##! # "T """ ##??????? | | """ + # """ *] + !## # """ """ #???????? | | """ # # # " ## = # g #???????? | | """ # % # # " " ## # == #???????? | | # # !# ##! + = ####????? | | # # # =%! ## # # ###??? | | ##### #####+########"######+######+####### #### | | ! %% % % | | ! % % * | | = % % % | | #+##### """ """ " " """ #######+############# | | [## """ """ """ """ #??# # ###???? | | ] ## """ """ """ """ #??# """ ####????? | | !! ## """ """ """ """ #### """ #???????? | +----------------------------------------------------+ Best States ------------- Heat Dissipation 31 Energy Generation 14 Energy Capacity 265 Matter Stores 300 Matter Capacity 300 Sight Range 20 Terrain Scan Density 10 Additional Mass Support 9 Armor Coverage 150 Evasion (%) 50 Targeting Accuracy 24 Recoil Reduction 2 Offensive Hacking 10 Item Schematics ----------------- None Robot Schematics ------------------ None Fabricated ------------ Nothing Alien Tech Used ----------------- None Achievements -------------- Curiosity Killed The Cat Challenges ------------ None Game ------ Seed ParticleReflectiveCharger Manual? 0 Play Time 00:50:15 Cumulative 5.4 hours Start 2025.01.15 @ 12:29:16 End 2025.01.15 @ 13:55:50 Sessions 1 Manual Loads 0 Difficulty Rogue Special Mode None Game No. 12 Rogue 12 Adventurer 0 Explorer 0 Win Type - Total 0 Types 0/0/0/0/0/0/0/0/0 Lore% 10 Gallery% 9 Achievement% 13 Wizard Run 0 Options --------- Layout 1 ASCII 0 Keyboard 0 Movement Mouse Keybinds 0 Fullscreen 1 Font 24/Smallcaps Map View 50x35 Zoom Use 0% Tactical HUD 0 Map Filters NONE Filters NONE Steam 1 RUN: 5bc24eed-65f6-4dbf-be91-98a7e15fd4d4